bitfinex-derivatives/quotes_SOLF0:USTF0_20240923
["timestamp","ask_amount","ask_price","bid_price","bid_amount"]
[1727083484325,3.47749806,144.94,144.89,7.44]
[1727083484632,10.91749806,144.94,144.9,3.4507]
[1727083484826,7.44,144.94,144.9,3.4507]
[1727083485337,10.85721547,144.94,144.89,3.4509]
[1727083485634,10.85721547,144.94,144.88,7.44]
[1727083485822,10.85721547,144.94,144.9,3.4506]
[1727083489229,10.85721547,144.94,144.91,3.4505]
[1727083489230,3.41721547,144.94,144.91,3.4505]
[1727083490335,1.3793,145.01,144.91,7.44]
[1727083490525,7.44,144.96,144.91,7.44]
[1727083490729,3.40248532,144.95,144.91,7.44]
[1727083491026,1.3793,145.01,144.84,3.48074019]
[1727083491222,7.44,144.95,144.9,7.44]
[1727083491425,3.37348981,144.94,144.86,3.48084225]
[1727083491633,7.44,144.94,144.88,7.44]
[1727083491822,7.44,144.93,144.81,3.46679552]
[1727083492022,7.44,144.93,144.87,7.44]
[1727083492734,10.8902,144.93,144.89,3.451]
[1727083493130,7.44,144.93,144.87,7.44]
[1727083493436,13.67842134,144.94,144.89,7.44]
[1727083494231,17.12832134,144.94,144.9,3.4507]
[1727083495039,13.67842134,144.94,144.91,3.4504]
[1727083496242,13.67842134,144.94,144.91,3.4505]
[1727083496631,6.23842134,144.94,144.91,3.4505]
[1727083497732,6.23842134,144.94,144.9,7.44]
[1727083497933,7.57302134,144.94,144.9,7.44]
[1727083498239,11.02292134,144.94,144.9,7.44]
[1727083498438,82.84,145.07,144.9,7.44]
[1727083498632,7.44,144.95,144.9,7.44]
[1727083498938,3.37002975,144.94,144.9,7.44]
[1727083499333,10.8898,144.95,144.9,3.4507]
[1727083499535,2.895,144.94,144.9,3.4507]
[1727083499734,6.30818215,144.94,144.9,3.4507]
[1727083499933,2.895,144.94,144.9,3.4507]
[1727083500141,3.38521939,144.93,144.91,3.4505]
[1727083500342,3.4493,144.97,144.9,7.44]
[1727083500642,10.8893,144.97,144.93,7.44]
[1727083500835,10.8893,144.97,144.93,10.8899]
[1727083501031,3.4493,144.97,144.93,10.8899]
[1727083501237,3.47842858,144.96,144.93,10.8899]
[1727083501444,10.8889,144.98,144.93,10.8899]
[1727083501743,10.8889,144.98,144.94,3.4498]
[1727083501744,3.51718901,144.97,144.94,3.4498]
[1727083501940,3.51718901,144.97,144.94,7.44]
[1727083502139,10.8887,144.99,144.94,7.44]
[1727083502334,2.8135,145.04,144.98,7.44]
[1727083502545,10.2535,145.04,144.92,58.6484075]
[1727083502739,7.44,145.02,144.97,7.44]
[1727083502946,10.8881,145.02,144.97,7.44]
[1727083503348,2.8135,145.04,144.98,7.44]
[1727083503645,2.8135,145.04,144.97,7.44]
[1727083503646,7.44,145.02,144.97,7.44]
[1727083503841,10.8881,145.02,144.97,7.44]
[1727083504241,7.44,145.0,144.96,3.4492]
[1727083504433,7.44,144.99,144.95,3.4496]
[1727083504635,7.44,144.99,144.93,7.44]
[1727083504636,7.44,144.97,144.93,7.44]
[1727083505440,7.44,144.97,144.92,58.6484075]
[1727083505644,7.44,144.97,144.92,66.0884075]
[1727083506038,10.8895,144.96,144.91,3.4504]
[1727083506245,7.44,144.93,144.82,6.9051]
[1727083506546,7.44,144.93,144.89,7.44]
[1727083506737,7.44,144.95,144.9,7.44]
[1727083507544,10.8897,144.95,144.91,3.4505]
[1727083507846,10.8897,144.95,144.91,10.8905]
[1727083508037,1.4054,144.97,144.91,7.44]
[1727083508239,7.44,144.96,144.91,7.44]
[1727083508642,7.44,144.96,144.92,3.4501]
[1727083508949,1.4054,144.97,144.94,7.44]
[1727083509246,6.20828319,144.98,144.95,7.44]
[1727083509247,2.7314,144.98,144.95,7.44]
[1727083509946,2.7314,144.98,144.89,3.51525821]
[1727083509947,2.7314,144.98,144.94,10.8897]
[1727083510140,7.44,144.97,144.93,7.44]
[1727083510343,7.44,144.97,144.93,10.8899]
[1727083511648,7.44,144.97,144.94,3.4498]
[1727083511847,2.7314,144.98,144.94,7.44]
[1727083512147,2.7314,144.98,144.95,10.8895]
[1727083512744,2.7314,144.98,144.95,7.44]
[1727083513749,2.7314,144.98,144.95,10.8896]
[1727083515238,10.1714,144.98,144.92,7.44]
[1727083515649,7.44,144.96,144.92,7.44]
[1727083515847,7.44,144.96,144.94,3.4498]
[1727083516748,7.44,144.96,144.93,3.45]
[1727083516945,7.44,144.94,144.79,6.9064]
[1727083517146,4.0708,144.98,144.79,6.9064]
[1727083517147,7.44,144.93,144.88,7.44]
[1727083517343,7.44,144.93,144.9,3.4507]
[1727083517542,7.44,144.93,144.84,3.49047487]
[1727083517754,7.44,144.93,144.88,7.44]
[1727083518144,7.44,144.93,144.84,3.48256817]
[1727083518451,7.44,144.92,144.87,7.44]
[1727083518845,7.44,144.9,144.82,3.48843631]
[1727083519045,10.8183224,144.9,144.86,7.44]
[1727083519246,3.3783224,144.9,144.86,7.44]
[1727083519447,7.44,144.91,144.86,7.44]
[1727083519648,3.50189851,144.9,144.86,7.44]
[1727083520551,3.50189851,144.9,144.84,11.59]
[1727083520748,3.4508,144.9,144.87,3.4515]
[1727083520948,6.91244468,144.9,144.87,3.4515]
[1727083521151,3.4508,144.9,144.87,3.4515]
[1727083521346,3.4508,144.9,144.86,3.4516]
[1727083521552,3.4508,144.9,144.73,307.0]
[1727083521553,3.43368086,144.9,144.82,11.59]
[1727083521856,15.8515,144.92,144.85,3.4518]
[1727083522055,3.4511,144.89,144.82,11.59]
[1727083522256,3.46475177,144.88,144.82,11.59]
[1727083522457,3.46475177,144.88,144.85,3.4518]
[1727083523359,6.91605177,144.88,144.85,3.4518]
[1727083525560,3.46892265,144.9,144.86,11.59]
[1727083525864,4.2615,144.92,144.86,11.59]
[1727083526064,3.4508,144.9,144.87,3.4514]
[1727083526268,6.94803756,144.9,144.87,3.4514]
[1727083526460,3.4508,144.9,144.87,3.4514]
[1727083526967,6.96426685,144.9,144.87,3.4514]
[1727083527259,3.4508,144.9,144.87,3.4514]
[1727083527558,3.48111597,144.89,144.87,3.4514]
[1727083529066,4.2615,144.92,144.86,11.59]
[1727083529363,2.8228,144.92,144.86,11.59]
[1727083529759,2.8228,144.92,144.89,3.4508]
[1727083529963,2.8228,144.92,144.86,11.59]
[1727083530269,3.4508,144.9,144.87,3.4514]
[1727083530464,6.97922407,144.9,144.87,3.4514]
[1727083531158,6.97922407,144.9,144.84,11.59]
[1727083531159,3.4506,144.91,144.88,3.4512]
[1727083531657,6.82271711,144.91,144.88,3.4512]
[1727083540268,14.24271711,144.91,144.88,3.4512]
[1727083543470,10.8708,144.9,144.84,7.42]
[1727083543669,7.42,144.89,144.84,7.42]
[1727083544066,10.8711,144.89,144.86,3.4516]
[1727083544272,10.8711,144.89,144.84,7.42]
[1727083545672,3.4511,144.89,144.85,7.42]
[1727083545872,3.37211711,144.91,144.87,7.42]
[1727083546067,10.79211711,144.91,144.87,7.42]
[1727083546574,10.79211711,144.91,144.88,3.4512]
[1727083547276,14.24271711,144.91,144.88,3.4512]
[1727083548177,3.4508,144.9,144.89,1.0]
[1727083548365,10.79211711,144.91,144.89,1.0]
[1727083548868,14.24281711,144.91,144.89,1.0]
[1727083549575,3.37211711,144.91,144.89,1.0]
[1727083550069,3.37211711,144.91,144.89,4.4509]
[1727083553270,2.8228,144.92,144.89,8.42]
[1727083554175,2.8228,144.92,144.9,3.4507]
[1727083554364,3.46820565,144.91,144.89,1.0]
[1727083555174,3.46820565,144.91,144.89,4.4509]
[1727083558273,3.46820565,144.91,144.89,3.4509]
[1727083558671,3.46820565,144.91,144.9,3.4508]
[1727083559071,13.6932,144.92,144.9,3.4508]
[1727083559270,13.6932,144.92,144.9,4.4508]
[1727083559476,10.2428,144.92,144.9,4.4508]
[1727083559672,95.49384834,145.01,144.9,8.42]
[1727083559883,7.42,144.96,144.9,8.42]
[1727083560069,10.90487986,144.96,144.9,8.42]
[1727083560375,7.42,144.95,144.9,8.42]
[1727083560571,7.42,144.93,144.91,3.4504]
[1727083561378,3.48522507,144.93,144.91,3.4504]
[1727083564380,4.2652,144.98,144.91,7.42]
[1727083564582,7.42,144.96,144.91,7.42]
[1727083564773,7.42,144.95,144.9,1.0]
[1727083565078,7.42,144.93,144.9,1.0]
[1727083565479,10.8702,144.93,144.9,4.4506]
[1727083565975,10.8702,144.93,144.9,1.0]
[1727083566175,7.42,144.93,144.9,1.0]
[1727083566578,7.42,144.91,144.9,1.0]
[1727083567381,1.3742,144.92,144.9,1.0]
[1727083568170,6.31591384,144.98,144.9,8.42]
[1727083568376,8.7942,144.97,144.91,7.42]
[1727083568772,1.3742,144.97,144.91,7.42]
[1727083568977,1.3742,144.97,144.9,1.0]
[1727083568978,8.7942,144.97,144.93,7.42]
[1727083569179,1.3742,144.97,144.95,3.4494]
[1727083569380,1.3742,144.97,144.94,7.42]
[1727083569682,3.4335294,145.0,144.96,7.42]
[1727083569876,7.42,145.02,144.98,7.42]
[1727083570276,10.93463911,145.02,144.96,7.42]
[1727083570480,10.93463911,145.02,144.9,1.0]
[1727083570481,7.42,145.0,144.9,1.0]
[1727083570676,7.42,144.99,144.93,7.42]
[1727083570877,7.42,144.97,144.94,3.4498]
[1727083571280,3.4487,144.99,144.95,3.4495]
[1727083571480,7.42,144.98,144.95,3.4495]
[1727083571981,7.42,144.97,144.93,7.42]
[1727083572177,7.42,144.97,144.9,1.0]
[1727083572382,7.42,144.97,144.92,7.42]
[1727083572581,10.8691,144.97,144.93,3.4499]
[1727083573380,3.4491,144.97,144.94,3.4498]
[1727083575681,3.449,144.98,144.94,3.4498]
[1727083575887,10.869,144.98,144.94,3.4498]
[1727083576777,10.869,144.98,144.95,3.4496]
[1727083576982,3.4176526,144.99,144.95,7.42]
[1727083577178,95.44223265,145.09,144.96,7.42]
[1727083577382,7.42,145.05,145.0,7.42]
[1727083577773,4.1288,145.08,145.0,7.42]
[1727083577977,7.42,145.04,145.0,10.8682]
[1727083578274,7.42,145.04,145.0,7.42]
[1727083578481,7.42,145.04,145.01,3.448]
[1727083578778,3.4471,145.06,145.01,3.448]
[1727083578986,7.42,145.05,145.01,3.448]
[1727083579383,4.1288,145.08,145.0,7.42]
[1727083579688,7.42,145.07,145.01,7.42]
[1727083579882,7.42,145.05,144.97,1.0]
[1727083580187,7.42,145.03,144.98,7.42]
[1727083580980,7.42,145.03,145.0,3.4483]
[1727083581585,10.8677,145.03,145.0,3.4483]
[1727083581779,4.1288,145.08,145.0,3.4483]
[1727083581980,7.42,145.04,145.0,3.4483]
[1727083582677,10.8675,145.04,145.0,3.4483]
[1727083582885,7.42,145.06,145.01,7.42]
[1727083583389,4.1288,145.08,145.02,7.42]
[1727083583586,4.1288,145.08,145.04,7.42]
[1727083583883,2.6999,145.08,144.97,1.0]
[1727083584078,3.51614904,145.11,145.07,7.42]
[1727083584284,7.42,145.13,145.03,3.43266939]
[1727083584488,7.42,145.11,145.08,7.42]
[1727083584885,10.2207,145.12,145.08,7.42]
[1727083585385,2.8007,145.12,145.08,7.42]
[1727083585585,2.8007,145.12,145.09,7.42]
[1727083585976,10.2207,145.12,145.07,7.42]
[1727083586185,2.8007,145.12,145.07,7.42]
[1727083586385,2.8007,145.12,145.07,3.4466]
[1727083586386,6.2463,145.12,145.07,3.4466]
[1727083586589,2.8007,145.12,144.97,1.0]
[1727083586788,12.9867,145.11,145.02,11.59]
[1727083586988,1.3967,145.11,145.03,11.59]
[1727083589384,3.4463,145.09,145.04,3.4473]
[1727083589581,3.50828182,145.08,145.04,3.4473]
[1727083589884,11.59,145.08,144.99,11.59]
[1727083590077,3.4469,145.07,144.99,11.59]
[1727083590282,15.11345575,145.1,145.01,11.59]
[1727083590477,3.4461,145.1,145.06,3.4468]
[1727083590682,3.4461,145.1,145.03,11.59]
[1727083590884,3.41275503,145.1,145.03,11.59]
[1727083591181,1.3967,145.11,145.03,11.59]
[1727083591584,11.59,145.1,145.01,11.59]
[1727083591783,11.59,145.08,145.0,3.39896055]
[1727083592485,3.43851196,145.07,145.0,3.39896055]
[1727083592789,6.88541196,145.07,145.03,3.4475]
[1727083593886,3.4473,145.05,144.99,11.59]
[1727083594094,11.59,145.08,144.99,11.59]
[1727083594484,3.4471,145.06,145.02,3.4477]
[1727083594690,6.95148516,145.06,145.02,3.4477]
[1727083595285,6.95148516,145.06,145.03,3.4477]
[1727083596392,3.50438516,145.06,145.05,3.4472]
[1727083596593,11.59,145.08,144.99,11.59]
[1727083597084,3.4469,145.07,144.99,11.59]
[1727083597592,3.4469,145.07,145.03,3.4475]
[1727083598292,6.84099541,145.08,145.01,11.59]
[1727083599083,6.84099541,145.08,145.04,3.4473]
[1727083599387,12.9867,145.11,145.01,11.59]
[1727083599586,12.9867,145.11,145.04,3.4473]
[1727083599789,3.4467,145.08,145.04,3.4473]
[1727083599985,3.5125598,145.07,145.04,3.4473]
[1727083600591,3.4467,145.08,145.04,3.4473]
[1727083600793,3.4464,145.09,145.07,1.0]
[1727083600987,3.36562829,145.08,145.07,1.0]
[1727083601293,6.81212829,145.08,145.07,1.0]
[1727083604189,3.36562829,145.08,145.07,1.0]
[1727083604394,11.59,145.1,145.07,1.0]
[1727083604592,14.99805217,145.1,145.07,1.0]
[1727083604797,3.4465,145.08,145.07,1.0]
[1727083607301,14.99805217,145.1,145.07,1.0]
[1727083607302,3.4464,145.09,145.07,1.0]
[1727083607495,14.99805217,145.1,145.07,1.0]
[1727083607891,3.4463,145.09,145.07,1.0]
[1727083608397,10.8563,145.09,145.07,1.0]
[1727083609797,7.41,145.09,145.07,1.0]
[1727083610192,10.81805217,145.1,145.07,1.0]
[1727083610395,3.40805217,145.1,145.07,11.8565]
[1727083610797,10.2107,145.12,145.08,7.41]
[1727083610999,6.2463,145.12,145.11,1.0]
[1727083611504,2.8007,145.12,145.11,1.0]
[1727083612302,82.76,145.29,145.11,8.41]
[1727083612499,7.41,145.15,145.11,8.41]
[1727083612704,10.88124765,145.15,145.11,1.0]
[1727083612905,3.4451,145.14,145.11,1.0]
[1727083616511,10.8551,145.14,145.11,1.0]
[1727083617411,3.4454,145.13,145.11,1.0]
[1727083617601,7.41,145.12,145.11,1.0]
[1727083617802,7.41,145.12,145.1,1.0]
[1727083617999,10.8558,145.11,145.1,1.0]
[1727083618411,14.30381437,145.11,145.1,2.0]
[1727083618601,7.41,145.14,145.1,2.0]
[1727083618806,7.41,145.12,145.1,2.0]
[1727083619308,10.8557,145.12,145.1,2.0]
[1727083619512,3.40504326,145.11,145.1,2.0]
[1727083619718,7.41,145.11,145.1,2.0]
[1727083620515,10.8558,145.11,145.1,2.0]
[1727083621214,7.41,145.11,144.82,17.2626]
[1727083621515,2.7669,145.1,145.08,1.0]
[1727083621704,3.4465,145.08,145.07,1.0]
[1727083621909,6.90753572,145.08,145.07,1.0]
[1727083622409,6.90753572,145.08,145.07,2.0]
[1727083623006,14.31753572,145.08,145.07,2.0]
[1727083624317,6.90753572,145.08,145.07,2.0]
[1727083626013,2.7669,145.1,145.05,1.8062]
[1727083626216,2.7669,145.1,145.03,0.73812949]
[1727083626217,11.58,145.06,145.03,0.73812949]
[1727083626721,3.4474,145.04,145.03,0.73812949]
[1727083627821,11.58,145.08,145.03,0.73812949]
[1727083627822,3.4473,145.05,145.03,0.73812949]
[1727083628122,15.0265,145.08,145.03,0.73812949]
[1727083628319,11.58,145.08,145.03,0.73812949]
[1727083628729,6.22427425,145.1,145.03,4.18562949]
[1727083628730,17.80427425,145.1,145.03,4.18562949]
[1727083628930,17.80427425,145.1,145.03,0.73812949]
[1727083629429,3.4465,145.08,145.04,3.4473]
[1727083630531,3.4465,145.08,145.03,4.18572949]
[1727083630730,17.80427425,145.1,145.03,0.73812949]
[1727083630935,11.58,145.08,145.03,0.73812949]
[1727083631439,11.58,145.08,145.0,14.2671]
[1727083631631,11.58,145.08,144.97,11.58]
[1727083632033,11.58,145.08,145.01,3.4479]
[1727083632233,11.58,145.08,145.07,1.0]
[1727083632432,11.58,145.08,145.06,1.0]
[1727083633028,3.4467,145.07,145.06,1.0]
[1727083635246,11.58,145.08,145.05,1.0]
[1727083635247,3.447,145.06,145.05,1.0]
[1727083635537,11.58,145.06,144.91,307.74]
[1727083635732,3.4487,144.99,144.95,3.4495]
[1727083635929,3.52880303,144.98,144.95,3.4495]
[1727083636133,11.58,145.01,144.95,3.4495]
[1727083636542,3.4487,144.99,144.95,3.4495]
[1727083637043,15.06947913,145.01,144.95,3.4495]
[1727083637044,3.4485,145.0,144.95,3.4495]
[1727083637339,15.06947913,145.01,144.95,3.4495]
[1727083637641,15.06947913,145.01,144.92,2.6813]
[1727083637847,11.58,144.99,144.92,2.6813]
[1727083638536,15.01087859,144.99,144.92,2.6813]
[1727083638835,11.58,144.93,144.75,225.0]
[1727083639142,3.4509,144.9,144.85,3.4518]
[1727083639437,15.06609289,144.93,144.83,11.58]
[1727083639643,11.58,144.93,144.83,11.58]
[1727083639943,11.58,144.93,144.85,11.58]
[1727083640242,15.09335495,144.93,144.83,11.58]
[1727083640437,3.451,144.9,144.85,3.4519]
[1727083642136,1.3396,144.92,144.83,11.58]
[1727083642337,1.3396,144.92,144.85,11.58]
[1727083643344,4.7899,144.92,144.85,11.58]
[1727083644846,4.7899,144.92,144.88,3.4512]
[1727083646948,3.51335495,144.93,144.85,11.58]
[1727083647144,11.58,144.95,144.85,11.58]
[1727083647742,15.08725676,144.95,144.85,11.58]
[1727083648743,94.05574101,145.2,144.89,11.58]
[1727083648947,6.923,145.25,144.85,11.58]
[1727083648948,11.58,145.0,144.91,11.58]
[1727083649350,14.9742135,145.0,144.95,3.4494]
[1727083649548,14.9742135,145.0,144.91,11.58]
[1727083650052,14.9742135,145.0,144.92,11.58]
[1727083650253,3.3942135,145.0,144.92,11.58]
[1727083650552,11.58,145.02,144.97,3.449]
[1727083651053,15.07230861,145.02,144.97,3.449]
[1727083651652,15.07230861,145.02,144.96,3.4493]
[1727083657250,15.07230861,145.02,144.97,3.4491]
[1727083657656,11.58,145.0,144.94,1.3226]
[1727083658356,11.58,145.0,144.95,3.4494]
[1727083659353,11.58,145.0,144.91,11.58]
[1727083659354,11.58,145.0,144.94,3.4497]
[1727083660151,1.3666,144.99,144.94,3.4497]
[1727083660859,1.3666,144.99,144.95,3.4496]
[1727083663456,1.3953,145.01,144.92,11.58]
[1727083663760,15.07230861,145.02,144.92,11.58]
[1727083663963,15.07230861,145.02,144.97,3.4489]
[1727083665456,15.07230861,145.02,144.95,3.4494]
[1727083665457,11.58,145.0,144.95,3.4494]
[1727083665657,11.58,144.98,144.95,3.4494]
[1727083667061,15.1100207,144.98,144.95,3.4494]
[1727083668866,3.5300207,144.98,144.92,11.58]
[1727083669065,13.0142,145.01,144.92,11.58]
[1727083669566,16.385025,145.01,144.96,3.4492]
[1727083678563,11.58,144.99,144.95,3.4495]
[1727083681172,11.58,144.99,144.93,3.4499]
[1727083681577,11.58,144.99,144.94,3.4498]
[1727083682478,16.385025,145.01,144.92,11.58]
[1727083683077,16.385025,145.01,144.95,3.4494]
[1727083684283,16.385025,145.01,144.96,3.4493]
[1727083685273,4.805025,145.01,144.97,3.4491]
[1727083686383,4.805025,145.01,144.96,3.4493]
[1727083687477,11.58,145.0,144.96,3.4493]
[1727083690075,1.3272,145.03,144.96,11.58]
[1727083690276,1.3272,145.03,145.0,7.42]
[1727083690482,3.4084435,145.02,145.0,7.42]
[1727083690779,3.4084435,145.02,144.98,7.42]
[1727083691282,7.42,145.0,144.96,7.42]
[1727083691478,10.89005657,145.0,144.96,7.42]
[1727083692182,10.89005657,145.0,144.98,3.4487]
[1727083692570,10.87625776,145.06,144.96,3.4383193]
[1727083692773,7.42,145.06,145.01,7.42]
[1727083693371,1.3774,145.08,145.04,7.42]
[1727083693881,7.42,145.07,144.96,3.38105422]
[1727083694075,7.42,145.05,145.01,7.42]
[1727083694279,7.42,145.05,145.0,7.42]
[1727083694685,7.42,145.05,144.95,6.8992]
[1727083694983,7.42,145.04,145.0,7.42]
[1727083695383,7.42,145.04,144.94,1.4424]
[1727083695384,7.42,145.04,144.98,7.42]
[1727083695683,7.42,145.03,145.01,3.448]
[1727083696285,15.02368508,145.05,145.01,3.448]
[1727083696586,11.59,145.05,145.01,3.448]
[1727083696981,14.95965472,145.05,145.01,3.448]
[1727083699080,14.95965472,145.05,145.0,3.4483]
[1727083699288,11.59,145.03,145.0,3.4483]
[1727083702586,14.95965472,145.05,145.0,3.4483]
[1727083705299,3.36965472,145.05,145.02,3.4478]
[1727083705595,11.59,145.07,145.02,3.4478]
[1727083706089,15.1052542,145.07,145.02,3.4478]
[1727083706884,15.1052542,145.07,144.98,11.59]
[1727083707497,15.1052542,145.07,145.02,3.4478]
[1727083709797,15.1052542,145.07,145.03,3.4477]
[1727083711289,15.1052542,145.07,145.04,3.4474]
[1727083711492,3.5152542,145.07,145.04,3.4474]
[1727083711692,3.5152542,145.07,145.0,11.59]
[1727083711693,1.3774,145.08,145.0,11.59]
[1727083711892,1.3774,145.08,145.03,3.4476]
[1727083712295,4.86377461,145.08,145.03,3.4476]
[1727083712491,1.3774,145.08,145.03,3.4476]
[1727083713201,11.59,145.07,144.98,11.59]
[1727083713795,11.59,145.07,145.02,3.4477]
[1727083713998,15.08569275,145.07,145.02,3.4477]
[1727083714794,15.08569275,145.07,145.03,3.4476]
[1727083717394,11.59,145.05,144.96,11.59]
[1727083717796,11.59,145.05,144.93,0.9919]
[1727083717797,11.59,145.01,144.93,0.9919]
[1727083717997,11.59,145.01,144.89,21.0954488]
[1727083718192,11.59,145.01,144.91,11.59]
[1727083718392,7.42,144.98,144.93,7.42]
[1727083718802,7.42,144.98,144.97,3.4491]
[1727083719100,10.88498944,144.98,144.97,3.4491]
[1727083720306,3.46498944,144.98,144.97,3.4491]
[1727083720511,11.6,144.98,144.89,19.35630184]
[1727083720800,15.02063188,144.98,144.9,5.92284725]
[1727083721104,15.02063188,144.98,144.94,3.4497]
[1727083721507,15.02063188,144.98,144.89,12.5899]
[1727083721508,15.02063188,144.98,144.9,5.92239215]
[1727083721698,15.02063188,144.98,144.89,12.5899]
[1727083722005,15.02063188,144.98,144.95,3.4496]
[1727083725511,15.02063188,144.98,144.88,13.0198]
[1727083725711,1.4053,144.97,144.89,5.91905258]
[1727083726009,1.4053,144.97,144.93,3.4499]
[1727083727309,11.6,144.96,144.92,3.4502]
[1727083727713,13.0009,144.96,144.86,11.6]
[1727083727908,13.0009,144.96,144.91,3.4505]
[1727083729306,13.0009,144.96,144.63,9.41117379]
[1727083729307,11.6,144.92,144.8,225.0]
[1727083729505,11.6,144.9,144.82,11.6]
[1727083729707,11.6,144.9,144.86,3.4515]
[1727083730304,11.6,144.9,144.82,11.6]
[1727083730305,3.51229112,144.89,144.87,3.4514]
[1727083731411,11.6,144.9,144.86,3.4516]
[1727083731612,3.36831929,144.9,144.82,11.6]
[1727083731813,11.6,144.91,144.82,11.6]
[1727083732008,11.6,144.91,144.87,3.4513]
[1727083733618,11.6,144.91,144.86,3.4516]
[1727083733805,11.6,144.89,144.82,11.6]
[1727083734009,15.10552486,144.89,144.82,11.6]
[1727083734210,15.10552486,144.89,144.86,3.4515]
[1727083734410,11.6,144.92,144.83,11.6]
[1727083734610,11.6,144.92,144.88,3.4511]
[1727083736503,11.6,144.92,144.87,3.4514]
[1727083736707,74.17276379,144.98,144.83,11.6]
[1727083736906,1.4593,144.95,144.88,11.6]
[1727083737103,1.4593,144.95,144.92,3.4502]
[1727083737314,4.96365537,144.95,144.88,11.6]
[1727083737518,1.4593,144.95,144.88,11.6]
[1727083738108,4.88009502,144.95,144.88,11.6]
[1727083738309,4.88009502,144.95,144.92,3.4501]
[1727083740014,4.88009502,144.95,144.86,11.6]
[1727083740420,6.20539502,144.95,144.86,11.6]
[1727083741108,6.20539502,144.95,144.91,3.4504]
[1727083741814,6.20539502,144.95,144.88,11.6]
[1727083742517,6.20539502,144.95,144.92,3.4501]
[1727083742718,6.20539502,144.95,144.88,11.6]
[1727083742913,6.20539502,144.95,144.92,3.4502]
[1727083745619,17.80539502,144.95,144.85,0.9949]
[1727083745926,11.6,144.93,144.84,1.366]
[1727083746425,7.42,144.9,144.86,7.42]
[1727083747030,7.42,144.9,144.88,3.4511]
[1727083747421,7.42,144.9,144.89,3.451]
[1727083748422,11.6,144.93,144.9,3.4508]
[1727083748726,11.6,144.93,144.84,12.966]
[1727083749032,6.20539502,144.95,144.84,12.966]
[1727083749329,11.6,144.93,144.84,12.966]
[1727083749917,11.6,144.93,144.89,3.451]
[1727083750926,11.6,144.91,144.88,3.4511]
[1727083751229,11.6,144.91,144.82,11.6]
[1727083752331,11.6,144.91,144.87,3.4513]
[1727083754523,11.6,144.91,144.88,3.4512]
[1727083756633,11.6,144.91,144.87,3.4514]
[1727083757132,11.6,144.91,144.82,11.6]
[1727083758131,11.6,144.91,144.87,3.4515]
[1727083759031,11.6,144.91,144.88,3.4513]
[1727083765234,11.6,144.93,144.89,3.4509]
[1727083768539,6.20539502,144.95,144.89,3.4509]
[1727083768540,7.42,144.91,144.89,3.4509]
[1727083770538,6.20539502,144.95,144.89,7.42]
[1727083770838,13.62539502,144.95,144.91,7.42]
[1727083771140,13.62539502,144.95,144.94,3.4498]
[1727083771141,3.42079502,144.95,144.94,3.4498]
[1727083771445,7.42,144.96,144.94,3.4498]
[1727083771636,10.9378217,144.96,144.94,3.4498]
[1727083772643,7.42,144.95,144.94,3.4498]